bitfinex-derivatives/quotes_BTCF0:USTF0_20230701
["timestamp","ask_amount","ask_price","bid_price","bid_amount"]
[1688207338225,0.63248996,30501.0,30500.0,1.07082745]
[1688207339911,0.63248996,30501.0,30500.0,1.08905714]
[1688207341115,0.63248996,30501.0,30500.0,0.72825714]
[1688207341315,0.63248996,30501.0,30500.0,1.07082745]
[1688207341617,0.63248996,30501.0,30500.0,1.08905714]
[1688207341823,0.63248996,30501.0,30500.0,1.07082745]
[1688207342622,0.63248996,30501.0,30500.0,1.08905714]
[1688207345927,0.63248996,30501.0,30500.0,0.72825714]
[1688207346129,0.63248996,30501.0,30500.0,1.44985714]
[1688207348327,0.63248996,30501.0,30500.0,1.43162745]
[1688207348528,0.63248996,30501.0,30500.0,1.44985714]
[1688207349427,0.63248996,30501.0,30500.0,1.43162745]
[1688207350929,0.63248996,30501.0,30500.0,1.07082745]
[1688207352228,0.63248996,30501.0,30500.0,1.08905714]
[1688207353015,0.63248996,30501.0,30500.0,1.07082745]
[1688207353220,0.63248996,30501.0,30500.0,1.08905714]
[1688207353731,0.63248996,30501.0,30500.0,1.07082745]
[1688207354130,0.63248996,30501.0,30500.0,1.08905714]
[1688207354327,0.63248996,30501.0,30500.0,1.07082745]
[1688207354728,0.63248996,30501.0,30500.0,1.08905714]
[1688207354933,0.63248996,30501.0,30500.0,1.07082745]
[1688207357824,0.63248996,30501.0,30500.0,1.08905714]
[1688207358329,0.63248996,30501.0,30500.0,1.07082745]
[1688207358518,0.63248996,30501.0,30500.0,1.08905714]
[1688207358717,0.63248996,30501.0,30500.0,0.72825714]
[1688207358921,0.63248996,30501.0,30500.0,1.07082745]
[1688207359534,0.63248996,30501.0,30500.0,1.08905714]
[1688207360323,0.63248996,30501.0,30500.0,1.07082745]
[1688207360524,0.63248996,30501.0,30500.0,1.08905714]
[1688207362122,0.63249196,30501.0,30500.0,1.08905714]
[1688207362538,0.61281496,30501.0,30500.0,1.08905714]
[1688207362726,0.63249296,30501.0,30500.0,1.08905714]
[1688207364437,0.63249296,30501.0,30500.0,1.07082745]
[1688207366941,0.63249296,30501.0,30500.0,1.08905714]
[1688207369636,0.63249296,30501.0,30500.0,1.051978]
[1688207370647,0.63249296,30501.0,30500.0,1.07020769]
[1688207370850,0.63249296,30501.0,30500.0,1.08905714]
[1688207371140,0.63249296,30501.0,30500.0,1.07082745]
[1688207371747,0.63249296,30501.0,30500.0,1.08905714]
[1688207372451,0.63249296,30501.0,30500.0,1.07082745]
[1688207373443,0.63249296,30501.0,30500.0,1.08905714]
[1688207375950,0.61281496,30501.0,30500.0,1.07082745]
[1688207376148,0.63249196,30501.0,30500.0,1.08905714]
[1688207376347,0.61281496,30501.0,30500.0,1.08905714]
[1688207376556,0.63249196,30501.0,30500.0,1.08905714]
[1688207379544,0.32814117,30501.0,30500.0,1.44035714]
[1688207379749,0.33593681,30501.0,30500.0,1.44035714]
[1688207379940,0.00779564,30501.0,30500.0,1.44035714]
[1688207380146,0.06684065,30504.0,30500.0,1.44035714]
[1688207380443,6.66e-05,30504.0,30503.0,0.7154]
[1688207380643,0.0268033,30504.0,30503.0,0.735075]
[1688207380947,6.66e-05,30504.0,30503.0,0.77215414]
[1688207381135,6.66e-05,30504.0,30503.0,1.07605414]
[1688207381850,0.3753506,30506.0,30504.0,0.03707914]
[1688207381851,0.0197396,30506.0,30504.0,0.03707914]
[1688207382060,0.0197396,30506.0,30505.0,0.374274]
[1688207382061,6.66e-05,30506.0,30505.0,0.374274]
[1688207382240,6.66e-05,30506.0,30505.0,0.41135314]
[1688207382442,0.48920183,30506.0,30505.0,0.41135314]
[1688207382749,0.57400685,30506.0,30505.0,0.41135314]
[1688207382941,0.57400685,30506.0,30505.0,0.374274]
[1688207383147,0.59367985,30506.0,30505.0,0.39250369]
[1688207383346,0.59367985,30506.0,30505.0,0.374274]
[1688207383543,0.61980458,30506.0,30505.0,0.39312345]
[1688207385744,1.61980458,30506.0,30505.0,0.39312345]
[1688207385942,0.00395179,30509.0,30506.0,0.01884945]
[1688207386147,0.7819,30512.0,30508.0,1.4286]
[1688207386451,0.7819,30512.0,30511.0,0.73507]
[1688207386452,0.02560229,30512.0,30511.0,0.73507]
[1688207386642,1.05,30513.0,30511.0,0.73507]
[1688207386848,1.05,30513.0,30512.0,0.374269]
[1688207387051,1.05,30513.0,30512.0,0.41134814]
[1688207387351,1.55000458,30513.0,30512.0,0.41134814]
[1688207388053,1.59649067,30513.0,30512.0,0.41134814]
[1688207388249,1.54649067,30513.0,30512.0,0.41134814]
[1688207388458,0.52682167,30513.0,30512.0,0.41134814]
[1688207388654,0.00609508,30513.0,30512.0,1.13334814]
[1688207388855,0.08478573,30513.0,30512.0,1.13334814]
[1688207389051,0.08478573,30517.0,30512.0,1.13334814]
[1688207389356,0.019666,30518.0,30512.0,0.387069]
[1688207389357,0.08478573,30516.0,30512.0,0.387069]
[1688207389547,0.019666,30518.0,30515.0,1.0667]
[1688207389749,0.08478382,30517.0,30516.0,0.01822969]
[1688207389946,0.29431984,30517.0,30516.0,0.3546]
[1688207390456,0.29431984,30517.0,30516.0,0.39167914]
[1688207391253,0.29431984,30517.0,30516.0,0.41134614]
[1688207392655,0.29431984,30517.0,30516.0,0.41134514]
[1688207392957,0.31398584,30517.0,30516.0,0.41134514]
[1688207393260,0.32571453,30517.0,30516.0,0.41134514]
[1688207395361,0.30604853,30517.0,30516.0,0.41134514]
[1688207400556,0.09651251,30517.0,30516.0,0.77874514]
[1688207400954,0.01172869,30517.0,30516.0,0.77874514]
[1688207403360,0.01172869,30517.0,30516.0,0.77214514]
[1688207405065,0.01172869,30517.0,30516.0,2.77214514]
[1688207405572,0.09650414,30517.0,30516.0,2.77214514]
[1688207406060,0.1017295,30517.0,30516.0,2.77214514]
[1688207408057,0.08477545,30517.0,30516.0,2.77214514]
[1688207408559,0.08477545,30518.0,30516.0,2.77214514]
[1688207408759,0.08477545,30518.0,30517.0,0.41134614]
[1688207408965,0.08477545,30521.0,30517.0,0.41134614]
[1688207409158,0.019665,30522.0,30520.0,0.372465]
[1688207409366,0.0847758,30521.0,30520.0,0.019665]
[1688207409563,0.0847758,30521.0,30520.0,0.374265]
[1688207409762,0.0847758,30521.0,30520.0,0.41134414]
[1688207410470,0.0847758,30522.0,30520.0,0.41134414]
[1688207410771,0.1252927,30523.0,30521.0,0.38967914]
[1688207410962,0.1252927,30523.0,30522.0,0.3516]
[1688207411269,0.1252927,30523.0,30522.0,0.38867914]
[1688207411470,0.21006738,30523.0,30522.0,0.37044945]
[1688207412466,0.21006738,30523.0,30522.0,0.38867914]
[1688207413164,0.21006738,30523.0,30522.0,0.37044945]
[1688207414265,1.0,30518.0,30516.0,2.0]
[1688207414561,0.374267,30517.0,30516.0,2.3546]
[1688207414770,0.374267,30517.0,30516.0,2.0]
[1688207414966,0.019667,30517.0,30516.0,2.374268]
[1688207419868,0.03675794,30517.0,30516.0,2.374268]
[1688207420067,0.12154358,30517.0,30516.0,2.372468]
[1688207424773,0.83694358,30517.0,30516.0,2.372267]
[1688207425072,0.83694358,30517.0,30516.0,2.34416281]
[1688207425476,0.47614358,30517.0,30516.0,2.34416281]
[1688207428170,0.76151916,30517.0,30516.0,2.34416281]
[1688207429871,1.15397969,30517.0,30516.0,2.34416281]
[1688207431382,0.86326225,30517.0,30516.0,2.32523092]
[1688207431679,0.76151916,30517.0,30516.0,2.32523092]
[1688207433383,0.76151916,30517.0,30516.0,0.41191554]
[1688207433384,1.12231916,30517.0,30516.0,0.41191554]
[1688207433571,0.86946225,30517.0,30516.0,0.27058676]
[1688207433769,1.25678006,30517.0,30516.0,0.25921451]
[1688207434080,1.35852315,30517.0,30516.0,0.25921451]
[1688207434478,1.35852315,30517.0,30516.0,0.2527442]
[1688207434681,1.71012315,30517.0,30516.0,0.2527442]
[1688207434884,2.10322633,30517.0,30516.0,0.2527442]
[1688207435570,2.10322633,30517.0,30516.0,0.2724102]
[1688207435770,1.71012315,30517.0,30516.0,0.2724102]
[1688207436988,1.69971691,30517.0,30516.0,0.24701254]
[1688207437582,1.69971691,30517.0,30516.0,0.22522046]
[1688207438379,1.69971691,30517.0,30516.0,0.20555446]
[1688207438984,1.69971691,30517.0,30516.0,0.20190207]
[1688207439186,1.69971691,30517.0,30516.0,0.17603493]
[1688207441688,1.0,30508.0,30506.0,0.049178]
[1688207441878,0.3546,30507.0,30506.0,0.049178]
[1688207442096,0.46554287,30507.0,30506.0,0.049178]
[1688207442277,0.46554287,30507.0,30504.0,0.34103379]
[1688207442488,0.3546,30505.0,30504.0,0.3193328]
[1688207442687,0.3546,30505.0,30503.0,0.426376]
[1688207442688,1.0,30504.0,30503.0,0.3608]
[1688207443006,1.0,30504.0,30501.0,0.22128944]
[1688207443007,1.81986991,30504.0,30501.0,0.22128944]
[1688207443293,0.019674,30501.0,30500.0,0.059025]
[1688207443495,0.52671914,30501.0,30500.0,0.05054416]
[1688207443690,0.45887191,30501.0,30500.0,0.39379317]
[1688207443899,0.17231915,30501.0,30500.0,0.39379317]
[1688207444191,0.17231915,30501.0,30500.0,0.43087231]
[1688207444395,0.17231915,30501.0,30500.0,0.40949877]
[1688207444694,0.10447191,30501.0,30500.0,0.39064932]
[1688207445397,0.10447191,30501.0,30500.0,0.40887901]
[1688207445590,0.10447191,30501.0,30500.0,0.39064932]
[1688207446194,0.10447191,30501.0,30500.0,0.71124932]
[1688207447487,0.43132384,30501.0,30500.0,0.72947901]
[1688207447689,0.43132384,30501.0,30500.0,0.74832846]
[1688207447690,0.41164984,30501.0,30500.0,0.74832846]
[1688207447899,0.0678439,30501.0,30500.0,0.75492846]
[1688207448210,0.13988117,30505.0,30502.0,0.0066]
[1688207448388,0.13988117,30505.0,30504.0,0.3546]
[1688207448593,0.22468415,30505.0,30504.0,0.374273]
[1688207448788,0.22468415,30505.0,30504.0,0.39312245]
[1688207449295,0.71621533,30505.0,30504.0,0.41135214]
[1688207449717,0.65213784,30505.0,30504.0,0.41135214]
[1688207449915,0.60295584,30505.0,30504.0,0.41135214]
[1688207450119,0.10225128,30508.0,30506.0,0.359]
[1688207450321,0.10225128,30508.0,30507.0,0.46574565]
[1688207450816,0.12791111,30508.0,30507.0,0.46574565]
[1688207451015,0.61644035,30508.0,30507.0,0.46574565]
[1688207452823,0.61644035,30508.0,30507.0,0.41135014]
[1688207453027,0.63610935,30508.0,30507.0,0.41135014]
[1688207457734,0.72090176,30508.0,30507.0,0.41135014]
[1688207460628,0.28053474,30508.0,30507.0,0.41795014]
[1688207460825,0.059005,30512.0,30507.0,0.41795014]
[1688207461134,0.08525181,30512.0,30511.0,0.7154]
[1688207461318,0.08525181,30512.0,30511.0,0.735068]
[1688207461517,0.5764142,30512.0,30511.0,0.77214714]
[1688207463821,0.66119837,30512.0,30511.0,0.77214714]
[1688207464831,0.66810022,30512.0,30511.0,0.77214714]
[1688207465132,0.91034821,30512.0,30511.0,0.77214714]
[1688207466033,0.58331605,30512.0,30511.0,0.77214714]
[1688207466233,0.52431105,30512.0,30511.0,0.77874714]
[1688207468834,0.52431105,30512.0,30511.0,0.77214714]
[1688207469834,0.54397905,30512.0,30511.0,0.75329769]
[1688207470034,0.87101121,30512.0,30511.0,0.77214714]
[1688207470733,0.8730006,30512.0,30511.0,0.77214714]
[1688207472450,0.8730006,30512.0,30511.0,0.75329769]
[1688207472641,0.95778572,30512.0,30511.0,0.75329769]
[1688207472831,0.63075356,30512.0,30511.0,0.75329769]
[1688207473140,0.63075356,30512.0,30511.0,0.735068]
[1688207473331,0.63075356,30512.0,30511.0,0.3546]
[1688207474744,0.63075356,30512.0,30511.0,0.374268]
[1688207478545,0.63075356,30512.0,30511.0,0.39249769]
[1688207478744,0.63075356,30512.0,30511.0,0.41134714]
[1688207479547,0.63075356,30512.0,30511.0,0.39311745]
[1688207480841,0.63075356,30512.0,30511.0,0.41134714]
[1688207484354,0.68514907,30512.0,30511.0,0.374268]
[1688207484553,0.63075356,30512.0,30511.0,0.374268]
[1688207484853,0.98535356,30512.0,30511.0,0.3546]
[1688207486859,1.98535356,30512.0,30507.0,0.019669]
[1688207487051,0.3546,30508.0,30507.0,0.3546]
[1688207487360,0.71064593,30508.0,30507.0,0.3546]
[1688207487851,0.3834974,30508.0,30507.0,0.3546]
[1688207488951,0.3834974,30508.0,30504.0,0.04967269]
[1688207488952,0.019671,30506.0,30504.0,0.04967269]
[1688207489151,0.07406651,30506.0,30505.0,0.3546]
[1688207489353,0.019671,30506.0,30505.0,0.3546]
[1688207491549,0.019671,30506.0,30505.0,0.32756521]
[1688207492150,0.374271,30506.0,30504.0,0.35509169]
[1688207492344,0.371271,30505.0,30504.0,0.35309169]
[1688207493546,0.371271,30505.0,30504.0,0.37276369]
[1688207494759,0.374271,30505.0,30504.0,0.37176369]
[1688207495256,0.45907108,30505.0,30504.0,0.37176369]
[1688207496251,0.45907108,30505.0,30504.0,0.40884283]
[1688207497054,0.45907108,30505.0,30504.0,0.39061314]
[1688207497758,0.43940008,30505.0,30504.0,0.39061314]
[1688207497960,0.08480008,30505.0,30504.0,0.40884283]
[1688207498660,0.10447208,30505.0,30504.0,0.38999338]
[1688207500654,0.10447208,30505.0,30504.0,0.37176369]
[1688207501050,0.10447208,30505.0,30504.0,0.38999338]
[1688207501255,0.10447208,30505.0,30504.0,0.40884283]
[1688207501865,0.08480008,30505.0,30504.0,0.40884283]
[1688207502362,0.33236544,30505.0,30504.0,0.41544283]
[1688207502762,0.00492409,30505.0,30504.0,0.41544283]
[1688207503461,0.00492409,30505.0,30504.0,0.76674283]
[1688207504262,0.00492409,30505.0,30504.0,1.12754283]
[1688207504566,0.00691381,30505.0,30504.0,1.12754283]
[1688207505158,0.02576702,30506.0,30504.0,1.12754283]
[1688207505357,0.02576702,30506.0,30505.0,0.39167914]
[1688207505570,0.00049171,30508.0,30506.0,0.3541]
[1688207505761,0.00049171,30508.0,30507.0,0.77034914]
[1688207507969,0.02618516,30508.0,30507.0,0.77694914]
[1688207508273,0.00049171,30508.0,30507.0,0.77694914]
[1688207509873,0.00740712,30508.0,30507.0,0.77694914]
[1688207510565,0.09219399,30508.0,30507.0,0.77694914]
[1688207511268,0.09219399,30508.0,30507.0,0.77034914]
[1688207513670,0.46646299,30508.0,30507.0,0.73327]
[1688207517670,0.70922243,30508.0,30507.0,0.73327]
[1688207517868,0.38167612,30508.0,30507.0,0.73327]
[1688207518473,0.38167612,30508.0,30507.0,0.75211945]
[1688207518970,0.36200712,30508.0,30507.0,0.77034914]
[1688207520172,0.36200712,30508.0,30507.0,0.73327]
[1688207520865,0.38167612,30508.0,30507.0,0.73327]
[1688207521674,0.70922243,30508.0,30507.0,0.73327]
[1688207521974,0.38167612,30508.0,30507.0,0.73327]
[1688207522961,0.70922243,30508.0,30507.0,0.73327]
[1688207523575,0.70922243,30508.0,30507.0,0.38047]
[1688207523768,0.70922243,30508.0,30507.0,0.3608]
[1688207524869,0.79401752,30508.0,30507.0,0.3608]
[1688207525262,0.46647121,30508.0,30507.0,0.3608]
[1688207526475,0.46647121,30508.0,30507.0,0.38047]
[1688207526679,0.46647121,30508.0,30507.0,0.39931945]
[1688207527578,0.46647121,30508.0,30507.0,0.38047]
[1688207527777,0.53344758,30508.0,30507.0,0.38047]
[1688207529175,0.46647121,30508.0,30507.0,0.38047]
[1688207532784,0.79411609,30508.0,30507.0,0.38047]
[1688207533289,0.46647121,30508.0,30507.0,0.38047]
[1688207536487,0.46647121,30508.0,30507.0,0.35750473]
[1688207536685,0.53132877,30508.0,30507.0,0.33783473]
[1688207539592,0.53132877,30508.0,30507.0,0.35750473]
[1688207539895,0.46647121,30508.0,30507.0,0.33783473]
[1688207540100,0.46647121,30508.0,30507.0,0.01967]
[1688207540697,0.46647121,30508.0,30505.0,0.40378]
[1688207541000,0.10446409,30507.0,30506.0,0.01967]
[1688207541195,0.45906409,30507.0,30506.0,0.01967]
[1688207541401,0.466208,30507.0,30506.0,0.01967]
[1688207541598,0.111608,30507.0,30506.0,0.39111945]
[1688207542296,0.111608,30507.0,30506.0,0.40934914]
[1688207543099,0.41967188,30507.0,30506.0,0.40934914]
[1688207545305,0.41967188,30507.0,30506.0,0.73634914]
[1688207545608,0.091939,30507.0,30506.0,0.73634914]
[1688207548094,0.091939,30507.0,30506.0,1.09714914]
[1688207549608,0.091939,30507.0,30506.0,1.07891945]
[1688207549811,0.091939,30507.0,30506.0,1.09714914]
[1688207551306,0.091939,30507.0,30506.0,1.06007]
[1688207551702,0.111609,30507.0,30506.0,1.06007]
[1688207551904,0.13725775,30507.0,30506.0,1.06007]
[1688207554211,0.13725775,30507.0,30506.0,1.07829969]
[1688207554411,0.13725775,30507.0,30506.0,1.09714914]
[1688207555009,0.13725775,30507.0,30506.0,1.07829969]
[1688207555408,0.13725775,30507.0,30506.0,1.06007]
[1688207555809,0.13725775,30507.0,30506.0,1.09714914]
[1688207556209,0.11758775,30507.0,30506.0,1.09714914]
[1688207560006,0.11758775,30507.0,30506.0,0.73634914]
[1688207560215,0.13725675,30507.0,30506.0,1.09714914]
[1688207560607,0.11758775,30507.0,30506.0,1.09714914]
[1688207566923,0.11758775,30507.0,30506.0,1.07829969]
[1688207567125,0.13725975,30507.0,30506.0,1.07829969]
[1688207567416,0.13725975,30507.0,30506.0,1.06007]
[1688207567610,0.13725975,30507.0,30506.0,1.07829969]
[1688207571020,0.13545064,30507.0,30506.0,1.07829969]
[1688207572131,0.13545064,30507.0,30506.0,1.09714914]
[1688207576328,0.11577864,30507.0,30506.0,1.09714914]
[1688207577219,0.11577864,30507.0,30506.0,1.45834914]
[1688207578332,0.35898306,30507.0,30506.0,1.45834914]
[1688207581227,0.35898306,30507.0,30506.0,1.45174914]
[1688207585122,0.11577248,30507.0,30506.0,1.45174914]
[1688207587632,0.09012373,30507.0,30506.0,1.45174914]
[1688207589533,0.09012373,30507.0,30506.0,1.45834914]
[1688207589739,0.07316036,30507.0,30506.0,1.45834914]
[1688207589929,0.06782556,30507.0,30506.0,1.45834914]
[1688207590327,0.32778532,30507.0,30506.0,1.45834914]
[1688207590525,0.39561088,30507.0,30506.0,1.45834914]
[1688207592640,0.32778532,30507.0,30506.0,1.45834914]
[1688207592837,0.00049171,30508.0,30506.0,1.45834914]
[1688207593037,0.00049171,30508.0,30507.0,0.75247914]
[1688207593337,0.06831711,30508.0,30507.0,0.77215314]
[1688207594642,0.07252648,30508.0,30507.0,0.77215314]
[1688207595032,0.00470108,30508.0,30507.0,0.77215314]
[1688207597740,0.00470108,30508.0,30507.0,1.10685314]
[1688207597941,0.00454152,30508.0,30507.0,1.10685314]
[1688207598147,0.32778532,30513.0,30507.0,1.069774]
[1688207598347,0.32778532,30513.0,30512.0,0.7154]
[1688207598531,0.39560817,30513.0,30512.0,0.73507]
[1688207598736,0.06782285,30513.0,30512.0,1.09587]
[1688207599035,0.06782285,30513.0,30512.0,1.13294914]
[1688207599238,0.06782285,30513.0,30512.0,1.46004914]
[1688207599847,0.07117107,30513.0,30512.0,1.46004914]
[1688207600141,0.08812485,30513.0,30512.0,1.46004914]
[1688207600447,0.1559477,30513.0,30512.0,1.46004914]
[1688207607551,0.1559477,30513.0,30512.0,1.11409969]
[1688207607852,0.1559477,30513.0,30512.0,1.13294914]
[1688207607853,0.07117107,30513.0,30512.0,1.13294914]
[1688207610849,0.39847107,30513.0,30512.0,1.13294914]
[1688207611052,0.39847107,30513.0,30512.0,0.77214914]
[1688207615248,0.48325024,30513.0,30512.0,0.77214914]
[1688207622862,0.39847107,30513.0,30512.0,0.77214914]
[1688207628066,0.72593842,30513.0,30512.0,0.77214914]
[1688207632062,0.81071714,30513.0,30512.0,0.77214914]
[1688207632366,0.81071715,30513.0,30512.0,0.77214914]
[1688207633358,0.72593842,30513.0,30512.0,0.73507]
[1688207633562,0.81071717,30513.0,30512.0,0.77214914]
[1688207633760,0.72593842,30513.0,30512.0,0.77214914]
[1688207634065,0.4832498,30513.0,30512.0,0.77214914]
[1688207634362,0.83081581,30513.0,30512.0,0.37427]
[1688207634553,0.83081836,30513.0,30512.0,0.37427]
[1688207634759,0.50292235,30513.0,30512.0,0.37427]
[1688207635669,0.57074909,30513.0,30512.0,0.37427]
[1688207635868,0.55107909,30513.0,30512.0,0.37427]
[1688207638068,0.57074709,30513.0,30512.0,0.37427]
[1688207640360,0.55107909,30513.0,30512.0,0.73507]
[1688207641574,0.55107909,30513.0,30512.0,0.75391945]
[1688207641770,0.55107909,30513.0,30512.0,0.77214914]
[1688207642672,0.55107909,30513.0,30512.0,0.75391945]
[1688207643269,0.55107909,30513.0,30512.0,0.77214914]
[1688207644972,0.55107909,30513.0,30512.0,0.75391945]
[1688207646372,0.55107909,30513.0,30512.0,0.73507]
[1688207646873,0.48325235,30513.0,30512.0,0.73507]
[1688207647270,0.15595235,30513.0,30512.0,0.73507]
[1688207647573,0.15595235,30513.0,30512.0,1.09604914]
[1688207656491,0.22377297,30513.0,30512.0,1.09604914]
[1688207660591,0.15595235,30513.0,30512.0,1.09604914]
[1688207662491,0.08812695,30513.0,30512.0,1.09604914]
[1688207673807,0.08812695,30513.0,30512.0,0.73524914]
[1688207674197,0.08812695,30513.0,30512.0,1.45684914]
[1688207676909,0.3202,30515.0,30512.0,1.77217]
[1688207677106,0.3202,30515.0,30514.0,0.7079]
[1688207677407,0.3202,30515.0,30514.0,0.727567]
[1688207677596,0.3202,30515.0,30514.0,0.76464614]
[1688207677801,0.34671865,30515.0,30514.0,0.41004614]
[1688207678098,0.41338273,30515.0,30514.0,0.41004614]
[1688207678305,0.34671865,30515.0,30514.0,0.41004614]
[1688207678894,0.34671865,30515.0,30514.0,0.39181645]
[1688207679199,0.34671865,30515.0,30514.0,0.372967]
[1688207679908,0.43149556,30515.0,30514.0,0.372967]
[1688207680507,0.45116156,30515.0,30514.0,0.372967]
[1688207681101,0.45116156,30515.0,30514.0,0.41004614]
[1688207684313,0.43149556,30515.0,30514.0,0.41004614]
[1688207684706,0.45116056,30515.0,30514.0,0.41004614]
[1688207684903,0.43149556,30515.0,30514.0,0.41004614]
[1688207688416,0.43149556,30515.0,30514.0,0.39181645]
[1688207688818,0.43149556,30515.0,30514.0,0.41004614]
[1688207691426,0.43149556,30515.0,30514.0,0.39181645]
[1688207691606,0.43149556,30515.0,30514.0,0.41004614]
[1688207693918,0.43149556,30515.0,30514.0,0.39181645]
[1688207694714,0.43149556,30515.0,30514.0,0.41004614]
[1688207697718,0.43149556,30515.0,30514.0,0.39181645]
[1688207697917,0.43149556,30515.0,30514.0,0.41004614]
[1688207698423,0.43149556,30515.0,30514.0,0.372967]
[1688207700024,0.43149556,30515.0,30514.0,0.39181645]
[1688207700524,0.43149556,30515.0,30514.0,0.41004614]
[1688207701626,0.43149556,30515.0,30514.0,0.39181645]
[1688207702125,0.43149556,30515.0,30514.0,0.41004614]
[1688207703427,0.43149556,30515.0,30514.0,0.39181645]
[1688207703629,0.43149556,30515.0,30514.0,0.41004614]
[1688207703929,0.43149556,30515.0,30514.0,0.39181645]
[1688207704227,0.43149556,30515.0,30514.0,0.41004614]
[1688207705134,0.43149556,30515.0,30514.0,0.39181645]
[1688207705921,0.43149556,30515.0,30514.0,0.41004614]
[1688207706125,0.43149556,30515.0,30514.0,0.39181645]
[1688207707224,0.43149556,30515.0,30514.0,0.41004614]
[1688207709828,0.11129556,30515.0,30514.0,0.41004614]
[1688207710623,0.11129556,30515.0,30514.0,0.372967]
[1688207712040,0.11129556,30515.0,30514.0,0.39181645]
[1688207712223,0.11129556,30515.0,30514.0,0.41004614]
[1688207712638,0.11129556,30515.0,30514.0,0.39181645]
[1688207712936,0.11129556,30515.0,30514.0,0.41004614]
[1688207713326,0.11129556,30515.0,30514.0,0.39181645]
[1688207713527,0.42649556,30515.0,30514.0,0.39181645]
[1688207713836,0.42649556,30515.0,30514.0,0.41004614]
[1688207714040,0.42649556,30515.0,30513.0,0.04267401]
[1688207714228,0.08477691,30514.0,30513.0,0.39547401]
[1688207714428,0.10444491,30514.0,30513.0,0.39547401]
[1688207718137,0.08477691,30514.0,30513.0,0.39547401]
[1688207721938,0.10444391,30514.0,30513.0,0.39547401]
[1688207722239,0.10444291,30514.0,30513.0,0.39547401]
[1688207722645,0.08477691,30514.0,30513.0,0.39547401]
[1688207723236,0.10444391,30514.0,30513.0,0.39547401]
[1688207724745,0.10444391,30514.0,30513.0,0.43255315]
[1688207724939,0.10444391,30514.0,30513.0,0.41432346]
[1688207725643,0.10444391,30514.0,30513.0,0.39547401]
[1688207726043,0.08477691,30514.0,30513.0,0.41432346]
[1688207726243,0.32789906,30514.0,30513.0,0.77512346]
[1688207726637,0.32789906,30514.0,30513.0,0.79335315]
[1688207727140,0.41267136,30514.0,30513.0,0.79335315]
[1688207727442,0.32789906,30514.0,30513.0,0.79335315]
[1688207727845,0.08477233,30514.0,30513.0,0.79335315]
[1688207732949,0.08477233,30514.0,30513.0,0.79378202]
[1688207733147,0.08477233,30514.0,30513.0,1.15458202]
[1688207733447,0.019664,30518.0,30513.0,1.15458202]
[1688207733448,0.32061584,30520.0,30514.0,0.01822969]
[1688207733641,0.32061584,30520.0,30519.0,0.7136]
[1688207733843,0.07559805,30520.0,30519.0,0.733264]
[1688207734145,0.07559805,30520.0,30519.0,0.77034314]
[1688207734345,0.37909805,30520.0,30519.0,0.77034314]
[1688207734854,0.38388974,30520.0,30519.0,0.77080741]
[1688207735347,0.38388974,30520.0,30519.0,0.75257772]
[1688207736150,0.38388974,30520.0,30519.0,0.77080741]
[1688207736347,0.46865749,30520.0,30519.0,0.75257772]
[1688207736545,0.41949849,30520.0,30519.0,0.75257772]
[1688207737252,0.11599849,30520.0,30519.0,0.75257772]
[1688207738053,0.11599849,30520.0,30519.0,0.73372827]
[1688207738356,0.13566249,30520.0,30519.0,0.37292827]
[1688207739155,0.13566249,30520.0,30519.0,0.41000741]
[1688207739456,0.13566249,30520.0,30519.0,0.39177772]
[1688207739654,0.13566249,30520.0,30519.0,0.37292827]
[1688207743155,0.88020007,30520.0,30519.0,0.02012827]
[1688207743355,0.85445242,30520.0,30519.0,0.37292827]
[1688207743662,0.80005691,30520.0,30519.0,0.37292827]
[1688207743850,0.40711933,30520.0,30519.0,0.37292827]
[1688207744053,0.46151484,30520.0,30519.0,0.37292827]
[1688207744547,0.190058,30520.0,30519.0,0.37292827]
[1688207744959,0.13566249,30520.0,30519.0,0.37292827]
[1688207745560,0.52860007,30520.0,30519.0,0.37292827]
[1688207745864,0.80005691,30520.0,30519.0,0.37292827]
[1688207747566,0.80005691,30520.0,30519.0,0.35326427]
[1688207747761,1.15465691,30520.0,30517.0,0.410592]
[1688207747968,0.7154,30518.0,30517.0,0.34143146]
[1688207748156,0.81983275,30518.0,30517.0,0.34143146]
[1688207748351,0.81983275,30518.0,30517.0,0.28949467]
[1688207748553,0.82472216,30518.0,30517.0,0.28949467]
[1688207748753,1.13302216,30518.0,30517.0,0.28949467]
[1688207750059,1.13302216,30518.0,30517.0,0.30916067]
[1688207750472,1.404479,30518.0,30517.0,0.30916067]
[1688207750965,1.404479,30518.0,30517.0,0.30993477]
[1688207751671,1.13302216,30518.0,30517.0,0.30993477]
[1688207757267,1.13302216,30518.0,30517.0,0.29413568]
[1688207758979,1.13302216,30518.0,30517.0,0.29336158]
[1688207763486,1.13302216,30518.0,30517.0,0.26887309]
[1688207766184,2.13302216,30518.0,30517.0,0.24920709]
[1688207766487,2.23475448,30518.0,30517.0,0.14041607]
[1688207766784,2.23475448,30518.0,30515.0,0.049168]
[1688207766785,2.62769206,30518.0,30515.0,0.049168]
[1688207766988,0.18650007,30517.0,30515.0,0.049168]
[1688207767186,0.019667,30516.0,30515.0,0.049168]
[1688207767377,0.10443475,30516.0,30515.0,0.401768]
[1688207767577,0.10933038,30516.0,30515.0,0.401768]
[1688207771492,0.08966338,30516.0,30515.0,0.401768]
[1688207771887,0.08966338,30516.0,30515.0,0.733568]
[1688207772091,0.08966338,30516.0,30515.0,0.77064714]
[1688207772482,0.08966338,30516.0,30515.0,0.733568]
[1688207773393,0.10933038,30516.0,30515.0,0.733568]
[1688207773782,0.10933038,30516.0,30515.0,0.704068]
[1688207773985,0.13609289,30516.0,30515.0,0.704068]
[1688207774291,0.20116857,30516.0,30515.0,0.704068]
[1688207774489,0.20116857,30516.0,30515.0,0.3526]
[1688207775093,0.20116857,30516.0,30515.0,0.3524668]
[1688207776187,0.20116857,30516.0,30515.0,0.3721348]
[1688207776790,0.18150157,30516.0,30515.0,0.3721348]
[1688207776994,0.11642589,30516.0,30515.0,0.7267348]
[1688207777694,0.11642589,30516.0,30515.0,0.77041394]
[1688207779389,0.11642589,30516.0,30515.0,0.76381394]
[1688207781791,0.11642589,30516.0,30515.0,1.12461394]
[1688207786603,0.11642589,30516.0,30515.0,1.13121394]
[1688207788090,0.11642589,30516.0,30515.0,1.12461394]
[1688207805419,0.11642589,30516.0,30515.0,1.10576449]
[1688207806009,0.11642589,30516.0,30515.0,1.12461394]
[1688207814121,0.11769662,30516.0,30515.0,1.12461394]
[1688207818921,0.11769662,30516.0,30515.0,1.0875348]
[1688207819229,0.11769662,30516.0,30515.0,1.10576449]
[1688207819727,0.11769662,30516.0,30515.0,1.0875348]
[1688207820326,0.11769662,30516.0,30515.0,1.10576449]
[1688207820614,0.11769662,30516.0,30515.0,1.0875348]
[1688207821021,0.11769662,30516.0,30515.0,1.10576449]
[1688207821924,0.11769662,30516.0,30515.0,1.12461394]
[1688207839227,0.11769662,30516.0,30515.0,1.10638425]